[Event "45th FIDE Olympiad 2024"]
[Site "Budapest"]
[Date "2024.09.11"]
[Round "1.9"]
[White "Praggnanandhaa, R."]
[Black "Tissir, Mohamed"]
[Result "1-0"]
[ECO "B66"]
[WhiteElo "2750"]
[BlackElo "2355"]
[Annotator "TA"]
[PlyCount "60"]
[EventDate "2024.09.05"]
[EventType "team-tourn"]
[EventCountry "HUN"]
[SourceTitle "playchess.com"]
[Source "ChessBase"]
[SourceQuality "1"]
[WhiteTeam "India"]
[BlackTeam "Morocco"]
[WhiteTeamCountry "IND"]
[BlackTeamCountry "MAR"]
[TimeControl "40/5400+30:1800+30"]

{[%evp 13,60,22,46,17,18,15,30,41,34,33,60,22,18,21,0,14,16,8,37,11,23,6,37,38,87,82,75,60,54,60,84,101,93,94,141,138,157,145,156,139,175,187,191,204,639,603,648,617,757]} 1. e4 {[%emt 0:00:51]} c5 {[%emt 0:03:39]} 2. Nf3 {[%emt 0:00:06]} d6 {[%emt 0:03:39]} 3. d4 {[%emt 0:00:32]} cxd4 {[%emt 0:00:16]} 4. Nxd4 {[%emt 0:00:06]} Nf6 {[%emt 0:00:10]} 5. Nc3 {[%emt 0:00:06]} Nc6 {[%emt 0:04:37]} 6. Bg5 {[%emt 0:00:45]} e6 {[%emt 0:00:01]} 7. Qd2 {[%emt 0:00:15]} a6 {[%emt 0:00:21]} 8. Nxc6 {[%emt 0:00:37]} bxc6 {[%emt 0:00:18]} 9. O-O-O {[%emt 0:00:08][%cal Oe4e5,Ba1d1,Bd1d3,Bd3h3,Bh3g3][%mdl 32] aiming for e5!} Be7 {[%emt 0:02:39]} 10. Bxf6 {[%emt 0:00:14] White has an edge.} gxf6 {[%emt 0:00:28]} 11. Bc4 {[%emt 0:00:07]} O-O {[%emt 0:24:21] Black is weak on the light squares} 12. Qh6 {[%emt 0:02:25] Rd3 would now be deadly.} Kh8 $1 {[%emt 0:00:29]} 13. Rd3 {[%emt 0:01:11] White wants to mate with Rh3.} Rg8 {[%emt 0:00:10][%cal Of6f5]} 14. Rh3 $40 {[%emt 0:00:55][%csl Gh3][%cal Rh6h7][%mdl 128] Black needs to defend precisely.} Rg7 {[%emt 0:01:39][%cal Od6d5]} 15. f4 {[%emt 0:01:20]} Qg8 {[%emt 0:02:01]} 16. Rg3 {[%emt 0:02:03]} Rb8 {[%emt 0:08:32]} 17. Qh5 {[%emt 0:09:59]} Rb4 {[%emt 0:09:43]} (17... Rg6 {simplifies} 18. Rxg6 fxg6 19. Qe2 a5) 18. Bd3 {[%emt 0:05:49]} c5 {[%emt 0:00:24]} (18... Rb8 $14) 19. a3 {[%emt 0:04:01]} Rb8 {[%emt 0:01:03]} 20. Rf1 {[%emt 0:05:38][%cal Bh1f1,Bf1f3,Bf3g3][%mdl 32] White has more active pieces.} Rg6 {[%emt 0:21:05]} 21. Rff3 {[%emt 0:14:03]} (21. Rxg6 {simplifies} fxg6 22. Qe2 a5 23. Bc4) 21... Qg7 {[%emt 0:04:50]} 22. Rh3 $1 {[%emt 0:02:40]} Bb7 {[%emt 0:02:59]} (22... Rxg2 $2 23. Rfg3 Rxg3 24. Rxg3 $18) 23. Rfg3 {[%emt 0:02:16] Repels f5} Rg8 {[%emt 0:01:04]} (23... Bf8 $142) 24. Kb1 $16 {[%emt 0:03:59]} a5 {[%emt 0:01:34] [#]} 25. f5 $1 {[%emt 0:04:27]} Rxg3 {[%emt 0:05:09]} 26. hxg3 {[%emt 0:06:27]} exf5 {[%emt 0:01:42] [#]} 27. Nd5 $1 {[%emt 0:00:16]} ({Not} 27. exf5 d5 $11 (27... Bxg2 $2 {is the wrong capture.} 28. Rh2 $18)) (27. Qxf5 Bc8 28. Qd5 Bxh3 29. gxh3 Qxg3 30. Qxf7 Qg7 $15) 27... Bxd5 {[%emt 0:00:34]} 28. exd5 {[%emt 0:00:03]} Re8 $2 {[%emt 0:00:32]} (28... Qg6) 29. Bxf5 $18 {[%emt 0:04:19]} h6 {[%emt 0:00:16]} 30. Qe2 {[%emt 0:00:22]} ({And not} 30. Qxh6+ Qxh6 31. Rxh6+ Kg7 32. Rh7+ Kg8 $11) 30... Qf8 {[%emt 0:00:00] Weighted Error Value: White=0.05 (flawless) /Black=0.33.  Mistake:       	---       	Black=3      Inaccurate:     	White=2     	Black=3      OK:         	White=9     	Black=7      Strong:       	White=2     	Black=1} 1-0

[Event "45th FIDE Olympiad 2024"]
[Site "Budapest"]
[Date "2024.09.11"]
[Round "1.10"]
[White "Elbilia, Jacques"]
[Black "Erigaisi, Arjun"]
[Result "0-1"]
[ECO "E44"]
[WhiteElo "2343"]
[BlackElo "2778"]
[Annotator "TA"]
[PlyCount "80"]
[EventDate "2024.09.05"]
[EventType "team-tourn"]
[EventCountry "HUN"]
[SourceTitle "playchess.com"]
[Source "ChessBase"]
[SourceQuality "1"]
[WhiteTeam "Morocco"]
[BlackTeam "India"]
[WhiteTeamCountry "MAR"]
[BlackTeamCountry "IND"]
[TimeControl "40/5400+30:1800+30"]

{[%evp 15,80,14,10,12,25,0,1,0,14,9,198,204,193,199,192,29,39,48,44,35,29,0,15,8,44,0,7,2,0,0,0,-47,0,-57,-35,-37,-27,-70,-23,-26,0,-39,0,-131,-104,-113,-120,-103,-105,-294,-306,-304,-300,-281,-287,-308,-307,-284,-247,-393,-387,-370,-391,-687,-681,-681,-681]} 1. d4 {[%emt 0:00:19]} Nf6 {[%emt 0:00:19][%cal Bg8f6,Bf6e4,Be4d2][%mdl 32]} 2. c4 {[%emt 0:00:14]} e6 {[%emt 0:00:05]} 3. Nc3 {[%emt 0:00:15]} Bb4 {[%emt 0:00:08]} 4. e3 {[%emt 0:00:37]} b6 {[%emt 0:01:03]} 5. Nge2 {[%emt 0:01:15]} Ne4 {[%emt 0:01:05]} 6. Bd2 {[%emt 0:02:24]} Nxd2 {[%emt 0:00:10]} 7. Qxd2 {[%emt 0:00:10]} O-O {[%emt 0:00:31]} 8. a3 {[%emt 0:04:11]} Be7 {[%emt 0:00:29]} 9. g3 {[%emt 0:05:58]} Bb7 {[%emt 0:06:09] Prevents Bg2} 10. e4 {[%emt 0:00:21]} Nc6 {[%emt 0:12:23]} 11. Qd3 {[%emt 0:13:01] The position is equal.} Ba6 {[%emt 0:11:37]} 12. b4 {[%emt 0:15:38] Inhibits Na5. aiming for b5.} Bxb4 {[%emt 0:00:44]} 13. axb4 $18 {[%emt 0:00:17]} Nxb4 {[%emt 0:00:05]} 14. Qb1 {[%emt 0:00:14]} c5 {[%emt 0:00:10] [#]} 15. Rxa6 $2 {[%emt 0:08:15]} Nxa6 $11 {[%emt 0:00:06]} 16. d5 {[%emt 0:00:20]} Nb4 {[%emt 0:01:25]} 17. Bg2 {[%emt 0:01:26]} exd5 {[%emt 0:00:42]} 18. Nxd5 {[%emt 0:05:44]} Nxd5 {[%emt 0:00:53]} 19. exd5 {[%emt 0:01:36]} (19. cxd5 d6 $18) 19... Re8 {[%emt 0:06:58][%cal Ob6b5]} 20. Qd3 {[%emt 0:00:12][%mdl 1024] White has compensation.} b5 $1 $132 {[%emt 0:01:00][%mdl 2048] And now ...Qa5+ would win. Black is not keeping still} 21. O-O {[%emt 0:02:03] With the idea d6.} b4 {[%emt 0:00:11] ...a5 is the strong threat.} 22. d6 {[%emt 0:00:54]} Rb8 {[%emt 0:00:05]} 23. Nf4 {[%emt 0:00:34]} (23. Nc1 $1 $11 {is superior.}) 23... Qf6 {[%emt 0:04:45]} (23... a5 $15) 24. Qb3 {[%emt 0:02:35]} (24. Bh3 $11) 24... Qxd6 {[%emt 0:03:30]} 25. Bd5 {[%emt 0:01:49]} Qa6 {[%emt 0:02:38]} 26. Rd1 {[%emt 0:05:43]} Re7 {[%emt 0:04:22]} ({Better is} 26... Qa3 $15 27. Qb1 Qc3) 27. Kg2 {[%emt 0:10:55]} Qa3 {[%emt 0:05:14]} 28. Qb1 {[%emt 0:02:43]} b3 {[%emt 0:00:43] Threatens to win with ...b2.} 29. Qf5 {[%emt 0:00:50]} (29. Be4 $11) 29... Qa6 {[%emt 0:02:53]} 30. Nd3 {[%emt 0:02:59]} Qf6 {[%emt 0:06:49]} 31. Qxf6 {[%emt 0:02:44]} gxf6 {[%emt 0:00:04]} 32. Kf3 {[%emt 0:00:06] [#] Inhibits Re2.} (32. Kf1 $17) 32... b2 $1 $19 {[%emt 0:11:16]} 33. Rb1 {[%emt 0:00:45]} Rb3 {[%emt 0:00:05]} 34. Be4 {[%emt 0:02:34] [#]} d5 $1 {[%emt 0:00:08]} 35. cxd5 {[%emt 0:00:37]} c4 {[%emt 0:00:16]} 36. Rxb2 {[%emt 0:00:18]} Ra3 {[%emt 0:00:45]} (36... Rxd3+ $2 37. Bxd3 cxd3 38. Rd2 $18) (36... f5 37. Bxf5 Reb7 38. Rd2 $19 (38. Rxb3 $2 Rxb3 39. d6 Kf8 $19)) 37. Rd2 {[%emt 0:06:18]} ({But not} 37. Rb8+ Kg7 38. g4 (38. d6 $2 Rd7 $19) 38... cxd3 $19) (37. Kf4 {was necessary.} cxd3 38. f3) 37... Kg7 {[%emt 0:03:45]} (37... cxd3 38. Bxd3 Rd7 39. Kg2 $17) 38. Kf4 {[%emt 0:01:36]} ({Much weaker is} 38. d6 Rd7 39. g4 cxd3 40. Bxd3 f5 (40... Rxd6 $2 41. Ke2 $19)) 38... cxd3 {[%emt 0:00:05]} 39. Bf5 $2 {[%emt 0:00:37]} (39. f3) 39... Ra4+ {[%emt 0:00:24]} 40. Kf3 {[%emt 0:00:29]} Re5 {[%emt 0:00:19][%csl LRd5,LRf5] Quite a comeback for Black.   Weighted Error Value: White=0.53/Black=0.18 (very precise) .  Loses game:     	White=1     	Black=1      Missed win:     	White=1     	---        Mistake:       	White=5     	Black=2      Inaccurate:     	White=2     	Black=1      OK:         	White=10    	Black=14     Best:        	White=5     	Black=1      Strong:       	---       	Black=2} 0-1

[Event "45th FIDE Olympiad 2024"]
[Site "Budapest"]
[Date "2024.09.11"]
[Round "1.11"]
[White "Vidit, Santosh Gujrathi"]
[Black "Ouakhir, Mehdi Pierre"]
[Result "1-0"]
[ECO "C62"]
[WhiteElo "2720"]
[BlackElo "2191"]
[Annotator "TA"]
[PlyCount "55"]
[EventDate "2024.09.05"]
[EventType "team-tourn"]
[EventCountry "HUN"]
[SourceTitle "playchess.com"]
[Source "ChessBase"]
[SourceQuality "1"]
[WhiteTeam "India"]
[BlackTeam "Morocco"]
[WhiteTeamCountry "IND"]
[BlackTeamCountry "MAR"]
[TimeControl "40/5400+30:1800+30"]

{[%evp 11,55,48,51,51,62,53,86,80,61,66,78,98,131,134,133,120,122,137,152,164,158,170,170,135,170,132,214,209,214,227,233,205,237,242,312,307,346,335,431,414,429,414,520,512,695,641]} 1. e4 {[%emt 0:00:35]} e5 {[%emt 0:00:21]} 2. Nf3 {[%emt 0:00:09]} Nc6 {[%emt 0:00:12]} 3. Bb5 {[%emt 0:00:16]} d6 {[%emt 0:01:20]} 4. d4 {[%emt 0:00:25]} Bd7 {[%emt 0:00:52]} 5. Bxc6 {[%emt 0:00:31]} Bxc6 {[%emt 0:00:09]} 6. Nc3 {[%emt 0:00:14]} Nf6 {[%emt 0:00:09]} 7. Qe2 {[%emt 0:00:12]} exd4 {[%emt 0:02:02]} 8. Nxd4 {[%emt 0:00:07]} Bd7 {[%emt 0:00:43]} 9. Bf4 {[%emt 0:00:57] White is better.} Be7 {[%emt 0:02:40]} 10. O-O-O {[%emt 0:06:05]} O-O {[%emt 0:05:12]} 11. Rhg1 {[%emt 0:00:10]} b5 {[%emt 0:08:53]} 12. Ndxb5 {[%emt 0:05:52] White has more active pieces.} Re8 {[%emt 0:19:28]} 13. g4 $1 {[%emt 0:25:15][%cal Bg2g4,Bg4g5][%mdl 32]} Rb8 {[%emt 0:06:12][%cal Of6e4]} 14. Nd4 {[%emt 0:12:25] Threatens to win with g5.} (14. Nxa7 Bf8) 14... Qc8 {[%emt 0:09:10] [#]} 15. g5 {[%emt 0:08:38]} Ng4 {[%emt 0:04:17] [#]} 16. Nf5 $1 $36 {[%emt 0:03:09][%mdl 2560] White is really pushing.} Bxf5 {[%emt 0:09:28]} (16... Ne5 17. Bxe5) 17. exf5 {[%emt 0:00:01]} Ne5 {[%emt 0:01:53]} 18. Bxe5 {[%emt 0:02:36]} dxe5 {[%emt 0:02:53] [#] Black is weak on the light squares} (18... Bf8 $16) 19. f6 $1 $18 {[%emt 0:01:58]} Bf8 {[%emt 0:03:04]} 20. fxg7 {[%emt 0:06:45]} Bxg7 {[%emt 0:01:12][%cal Oe5e4]} 21. Qc4 {[%emt 0:01:14]} Qf5 {[%emt 0:03:11]} 22. Ne4 {[%emt 0:02:49] Nf6+ would now be deadly.} (22. Qxc7 e4 $11) 22... Qf4+ {[%emt 0:01:27]} 23. Kb1 {[%emt 0:00:28]} Rb6 {[%emt 0:03:12]} 24. Rd7 {[%emt 0:01:10]} Rbe6 {[%emt 0:05:07]} 25. h4 {[%emt 0:03:39]} ({Resist} 25. Rxc7 Qxh2 26. Re1 (26. Rd1 Qh5 $18) 26... a6) 25... Kh8 {[%emt 0:00:39]} 26. Rxc7 {[%emt 0:01:04]} a5 {[%emt 0:01:52]} 27. a3 {[%emt 0:00:25]} h6 {[%emt 0:04:02]} 28. Rd1 {[%emt 0:00:45] Inhibits Rd8.   Weighted Error Value: White=0.04 (flawless) /Black=0.37.  Mistake:       	---       	Black=1      Inaccurate:     	---       	Black=3      OK:         	White=12    	Black=6      Best:        	White=2     	Black=2} 1-0

[Event "45th FIDE Olympiad 2024"]
[Site "Budapest"]
[Date "2024.09.11"]
[Round "1.12"]
[White "Moayad, Anas"]
[Black "Harikrishna, Pentala"]
[Result "0-1"]
[ECO "B51"]
[WhiteElo "2016"]
[BlackElo "2686"]
[Annotator "TA"]
[PlyCount "66"]
[EventDate "2024.09.05"]
[EventType "team-tourn"]
[EventCountry "HUN"]
[SourceTitle "playchess.com"]
[Source "ChessBase"]
[SourceQuality "1"]
[WhiteTeam "Morocco"]
[BlackTeam "India"]
[WhiteTeamCountry "MAR"]
[BlackTeamCountry "IND"]
[TimeControl "40/5400+30:1800+30"]

{[%evp 20,66,27,28,19,0,20,14,22,24,27,14,16,7,6,4,7,10,14,18,18,0,6,0,0,-9,-11,-25,0,-9,-8,-10,-18,-14,-19,-42,-37,-133,-135,-294,-294,-272,-289,-285,-293,-295,-295,-3939,-2711]} 1. e4 {[%emt 0:00:06]} c5 {[%emt 0:00:11]} 2. Nf3 {[%emt 0:00:11]} Nc6 {[%emt 0:00:25]} 3. Bb5 {[%emt 0:00:52]} d6 {[%emt 0:01:32]} 4. O-O {[%emt 0:01:55]} Bd7 {[%emt 0:00:56]} 5. Re1 {[%emt 0:01:21]} Nf6 {[%emt 0:01:18]} 6. c3 {[%emt 0:01:41]} a6 {[%emt 0:00:52]} 7. Bf1 {[%emt 0:06:55]} Bg4 {[%emt 0:01:49]} 8. h3 {[%emt 0:01:37]} Bxf3 {[%emt 0:01:00]} 9. Qxf3 {[%emt 0:00:21]} g6 {[%emt 0:00:23]} 10. a4 {[%emt 0:01:37]} Bg7 {[%emt 0:03:31]} 11. Na3 {[%emt 0:03:32]} O-O {[%emt 0:02:31]} 12. Qd1 {[%emt 0:05:18]} Nd7 {[%emt 0:03:01]} 13. Nc2 {[%emt 0:11:07]} Qb6 {[%emt 0:17:03] The position is equal.} 14. d3 {[%emt 0:08:50]} Rab8 {[%emt 0:01:52]} 15. Ne3 {[%emt 0:01:20]} Qd8 {[%emt 0:01:17]} 16. Qc2 {[%emt 0:14:17]} b5 {[%emt 0:01:10]} 17. axb5 {[%emt 0:00:16]} axb5 {[%emt 0:00:16]} 18. Bd2 {[%emt 0:01:01]} Qc8 {[%emt 0:05:10]} 19. f4 {[%emt 0:03:20]} e6 {[%emt 0:02:05]} 20. Kh1 {[%emt 0:03:57]} b4 {[%emt 0:11:31]} 21. Reb1 {[%emt 0:05:36]} Qc7 {[%emt 0:04:09]} 22. Ra6 {[%emt 0:02:33]} Nb6 {[%emt 0:09:24]} 23. Be2 {[%emt 0:06:05]} Qb7 {[%emt 0:02:40]} 24. Raa1 {[%emt 0:00:27]} d5 {[%emt 0:00:50]} 25. exd5 {[%emt 0:00:53]} exd5 {[%emt 0:05:26]} (25... Nxd5 26. Nxd5 exd5 27. Bf3 $11) 26. Bf3 {[%emt 0:00:25]} Qd7 {[%emt 0:00:28]} 27. Bg4 {[%emt 0:08:58]} Qd6 {[%emt 0:02:27] ...d4 is the strong threat.} 28. f5 {[%emt 0:01:27]} (28. Ra6 $15) 28... d4 $17 {[%emt 0:01:24] Black is more active.} 29. Nc4 {[%emt 0:00:54] White does not recover from this.} (29. cxd4 $17 Nxd4 30. Qd1) 29... Nxc4 $19 {[%emt 0:01:51]} 30. dxc4 {[%emt 0:00:01] [#]} dxc3 {[%emt 0:03:33]} ({Don't do} 30... h5 31. Bf3 $17) 31. bxc3 {[%emt 0:00:13] [#]} b3 $1 {[%emt 0:00:15][%mdl 512]} 32. Qc1 {[%emt 0:01:27]} Qd3 {[%emt 0:03:56]} 33. Bd1 $2 {[%emt 0:02:20]} (33. f6 Bxf6 34. Ra6) 33... Qf1+ {[%emt 0:00:22] Weighted Error Value: White=0.51/Black=0.03 (flawless) .  Mistake:       	White=3     	---        OK:         	White=5     	Black=10     Best:        	---       	Black=3} ({Not} 33... Qxf5 34. Bxb3 Rbd8 35. Bc2 $15) 0-1

[Event "45th FIDE Olympiad 2024"]
[Site "Budapest"]
[Date "2024.09.11"]
[Round "1.13"]
[White "Ashiku, Franc"]
[Black "Bhakta, Bahadur Monger"]
[Result "1-0"]
[ECO "D02"]
[WhiteElo "2400"]
[BlackElo "1911"]
[Annotator "ChessBase"]
[PlyCount "64"]
[EventDate "2024.09.05"]
[EventType "team-tourn"]
[EventCountry "HUN"]
[SourceTitle "playchess.com"]
[Source "ChessBase"]
[SourceQuality "1"]
[WhiteTeam "Albania"]
[BlackTeam "Bhutan"]
[WhiteTeamCountry "ALB"]
[BlackTeamCountry "BTN"]
[TimeControl "40/5400+30:1800+30"]

1. d4 Nf6 2. Nf3 e6 3. Bf4 d5 4. e3 Bd6 5. Nbd2 c5 6. Bg3 Nc6 7. c3 a6 8. Bd3 Ne7 9. e4 Bxg3 10. hxg3 cxd4 11. Nxd4 e5 12. N4f3 Bg4 13. Qc2 Nc6 14. exd5 Qxd5 15. Ne4 O-O-O 16. Nxf6 gxf6 17. Be4 Qc5 18. Bf5+ Bxf5 19. Qxf5+ Kb8 20. O-O Qe7 21. Rfe1 h5 22. Rad1 Qe6 23. Rxd8+ Nxd8 24. Nd4 Qxf5 25. Nxf5 Kc7 26. f3 Ne6 27. Kf2 Nc5 28. Ke2 Rg8 29. Rh1 Rg5 30. Ne3 Kd6 31. f4 Rxg3 32. Nf5+ Kd5 1-0

[Event "45th FIDE Olympiad 2024"]
[Site "Budapest"]
[Date "2024.09.11"]
[Round "1.13"]
[White "Dominguez, Jose Manuel"]
[Black "Wei, Yi"]
[Result "0-1"]
[ECO "B30"]
[WhiteElo "2195"]
[BlackElo "2762"]
[Annotator "TA"]
[PlyCount "92"]
[EventDate "2024.09.05"]
[EventType "team-tourn"]
[EventCountry "HUN"]
[SourceTitle "playchess.com"]
[Source "ChessBase"]
[SourceQuality "1"]
[WhiteTeam "Dominican Republic"]
[BlackTeam "China"]
[WhiteTeamCountry "DOM"]
[BlackTeamCountry "CHN"]
[TimeControl "40/5400+30:1800+30"]

{[%evp 9,92,-12,-11,-15,-17,-28,-14,-37,-37,-39,-27,-39,-29,-37,-29,-31,-21,-42,-23,-31,-30,-47,-18,-25,-17,-20,0,0,0,-13,-14,-28,-34,-125,-10,-24,-20,-18,-12,-14,-20,-33,-45,-42,-39,-54,-53,-41,-53,-129,-116,-133,-93,-101,-100,-173,-175,-220,-122,-136,-96,-97,-92,-139,-53,-130,-99,-135,-154,-539,-532,-551,-513,-520,-562,-515,-500,-627,-574,-643,-608,-668,-620,-6520,-6520]} 1. e4 {[%emt 0:00:06]} c5 {[%emt 0:00:13]} 2. Nf3 {[%emt 0:00:03]} Nc6 {[%emt 0:00:15]} 3. Be2 {[%emt 0:00:53]} Nf6 {[%emt 0:00:19]} 4. d3 {[%emt 0:00:08]} g6 {[%emt 0:00:14]} 5. O-O {[%emt 0:00:05]} Bg7 {[%emt 0:00:05]} 6. Re1 {[%emt 0:01:24]} d5 {[%emt 0:00:36]} 7. Nbd2 {[%emt 0:00:08]} O-O {[%emt 0:00:09]} 8. Bf1 {[%emt 0:00:02] The position is equal.} e5 {[%emt 0:00:21]} 9. c3 {[%emt 0:00:31]} Qc7 {[%emt 0:00:58]} 10. a3 {[%emt 0:00:22]} a5 {[%emt 0:00:07]} 11. a4 {[%emt 0:00:15]} h6 {[%emt 0:00:29]} 12. exd5 {[%emt 0:09:39]} Nxd5 {[%emt 0:00:07]} 13. Nc4 {[%emt 0:00:21]} b6 {[%emt 0:05:53]} 14. Qb3 {[%emt 0:06:00]} Be6 {[%emt 0:01:06]} 15. Bd2 {[%emt 0:01:29]} Rfe8 {[%emt 0:04:41]} 16. h3 {[%emt 0:24:03]} Rad8 {[%emt 0:01:05]} 17. Rad1 {[%emt 0:00:10]} f5 {[%emt 0:00:16]} 18. Bc1 {[%emt 0:00:55]} Bf7 {[%emt 0:04:44]} 19. Qc2 {[%emt 0:01:51]} g5 {[%emt 0:04:22]} 20. Nfd2 {[%emt 0:11:14]} Bh5 {[%emt 0:21:27]} 21. Be2 {[%emt 0:07:47]} (21. Nf3 $15) 21... Bg6 {[%emt 0:00:12] Black is more active.} ({Better is} 21... Bxe2 $17 22. Rxe2 Nf4) 22. Nf1 {[%emt 0:06:06]} Kh7 {[%emt 0:02:54]} 23. Nfe3 {[%emt 0:07:58]} Nce7 {[%emt 0:20:53]} 24. Qb3 {[%emt 0:04:04]} Nxe3 {[%emt 0:05:51]} 25. fxe3 {[%emt 0:09:18]} Nc8 {[%emt 0:01:34]} 26. e4 {[%emt 0:04:19]} f4 $1 {[%emt 0:01:28]} 27. Bg4 {[%emt 0:00:15]} Rf8 {[%emt 0:01:54]} 28. Rf1 {[%emt 0:03:01]} Rf6 {[%emt 0:00:32]} 29. h4 {[%emt 0:01:28]} gxh4 $17 {[%emt 0:00:34]} 30. Qc2 {[%emt 0:00:06]} Qe7 {[%emt 0:03:47]} 31. Qe2 {[%emt 0:00:17]} Rc6 {[%emt 0:02:06]} 32. Rf3 {[%emt 0:00:43]} (32. Nd2 $17 {was called for.}) 32... Nd6 $19 {[%emt 0:00:43]} 33. b3 {[%emt 0:00:57]} h5 {[%emt 0:01:42]} (33... Nxc4 $19 34. bxc4 Qg5) 34. Bh3 $17 {[%emt 0:00:07]} Nf7 {[%emt 0:00:06]} 35. Rff1 {[%emt 0:00:20]} Nh6 {[%emt 0:05:04][%cal Oh6g4]} 36. Kh1 {[%emt 0:00:36] [#]} (36. d4 $142 cxd4 (36... exd4 37. e5 $15) 37. cxd4 Rxd4 (37... exd4 38. Rxf4 Kg8 39. Kh1 $11) 38. Rxd4) 36... Rf8 {[%emt 0:01:56]} (36... Ng4 $1 $17 37. Qf3 (37. Bxg4 $2 hxg4 38. Qxg4 Bf7 $19) 37... Re6) 37. Nd2 {[%emt 0:00:18]} (37. Rde1 $15) 37... Bf7 {[%emt 0:00:31][%cal Oh6g4]} 38. Nc4 {[%emt 0:00:52][%cal Od3d4] [#]} Ng4 $1 {[%emt 0:00:58][%mdl 512]} 39. Bxg4 $2 {[%emt 0:01:13] Now White is beyond hope.} (39. Ba3 $17 {is tougher.}) (39. d4 cxd4) 39... hxg4 $19 {[%emt 0:00:05] Black is clearly winning.} 40. Qxg4 {[%emt 0:00:07]} Rh6 {[%emt 0:00:50][%cal Oh4h3] ...h3! is the strong threat.} 41. Qh3 {[%emt 0:30:48]} Be6 {[%emt 0:30:18]} 42. Qh2 {[%emt 0:00:00]} h3 {[%emt 0:00:00] ( -> ...hxg2+)} 43. g3 {[%emt 0:00:00]} fxg3 {[%emt 0:00:00]} 44. Qxg3 {[%emt 0:00:00]} Rg6 {[%emt 0:00:00] Repels Bg5} 45. Qe1 {[%emt 0:00:00]} Bg4 {[%emt 0:00:00]} 46. Rxf8 {[%emt 0:00:00]} Qxf8 {[%emt 0:00:00] Weighted Error Value: White=0.49/Black=0.17 (very precise) .  Loses game:     	White=1     	---        Mistake:       	White=5     	Black=3      Inaccurate:     	White=1     	Black=2      OK:         	White=12    	Black=18     Best:        	White=2     	Black=1      Strong:       	---       	Black=1} 0-1

[Event "45th FIDE Olympiad 2024"]
[Site "Budapest"]
[Date "2024.09.11"]
[Round "1.14"]
[White "Yu, Yangyi"]
[Black "Araujo Sanchez, Josue"]
[Result "1-0"]
[ECO "B12"]
[WhiteElo "2703"]
[BlackElo "2296"]
[Annotator "TA"]
[PlyCount "43"]
[EventDate "2024.09.05"]
[EventType "team-tourn"]
[EventCountry "HUN"]
[SourceTitle "playchess.com"]
[Source "ChessBase"]
[SourceQuality "1"]
[WhiteTeam "China"]
[BlackTeam "Dominican Republic"]
[WhiteTeamCountry "CHN"]
[BlackTeamCountry "DOM"]
[TimeControl "40/5400+30:1800+30"]

{[%evp 9,43,37,42,70,50,64,65,66,56,44,56,61,150,160,162,155,137,108,103,116,210,197,195,143,223,190,222,230,230,158,252,215,397,410,750,675]} 1. e4 {[%emt 0:00:04]} c6 {[%emt 0:03:08]} 2. d4 {[%emt 0:00:29]} a6 {[%emt 0:02:32]} 3. Nd2 {[%emt 0:01:33]} d5 {[%emt 0:00:21]} 4. e5 {[%emt 0:00:25]} c5 {[%emt 0:00:47]} 5. Ngf3 {[%emt 0:04:11]} Nc6 {[%emt 0:03:33]} 6. dxc5 {[%emt 0:02:18]} Bg4 {[%emt 0:02:37]} 7. h3 {[%emt 0:05:34]} Bxf3 {[%emt 0:03:27]} 8. Nxf3 {[%emt 0:02:30][%cal Ob2b4] White is slightly better.} e6 {[%emt 0:01:07]} 9. Be3 {[%emt 0:01:49]} Qc7 {[%emt 0:00:21]} 10. c3 {[%emt 0:01:33][%cal Bc2c3,Bc3c4][%mdl 32]} Nxe5 {[%emt 0:06:23]} (10... g6 $14) 11. Nxe5 $16 {[%emt 0:01:38]} Qxe5 {[%emt 0:00:07]} 12. Qa4+ {[%emt 0:01:57]} Kd8 {[%emt 0:01:22]} 13. O-O-O {[%emt 0:16:27] Bf4 would now be deadly.} Qc7 {[%emt 0:00:35]} 14. b4 {[%emt 0:02:05] c4 is the strong threat. White has more active pieces.} Ne7 {[%emt 0:00:58] [#]} (14... Qc6 $16 {was necessary.} 15. Qb3 Nf6) 15. c4 $1 $18 {[%emt 0:01:20] And now cxd5 would win.} Qc6 {[%emt 0:06:20]} 16. Qa5+ {[%emt 0:05:23]} ({Better is} 16. Qb3 $18) 16... Kc8 {[%emt 0:04:21]} (16... Ke8 $16 17. Bd3 dxc4 18. Bxc4 Qc8 19. Qa4+ Nc6) 17. Be2 {[%emt 0:07:03] Threatens to win with cxd5.} g6 {[%emt 0:08:37]} 18. Bf3 {[%emt 0:03:36]} Bg7 {[%emt 0:01:09]} 19. Rhe1 {[%emt 0:08:13] Black must now prevent Bf4.} Rd8 {[%emt 0:07:49]} (19... b5 $16) 20. Bf4 {[%emt 0:03:08] Strongly threatening cxd5.} Bf6 $2 {[%emt 0:06:44]} (20... b6 21. Qxb6 Qxb6 22. cxb6 Kb7) 21. cxd5 {[%emt 0:03:05]} Nxd5 {[%emt 0:00:51] [#]} (21... exd5 $142 22. Kb1 h5) 22. Rxd5 $1 {[%emt 0:00:36][%mdl 512] Weighted Error Value: White=0.19 (very precise) /Black=0.44.  Mistake:       	White=1     	Black=6      Inaccurate:     	White=1     	---        OK:         	White=6     	Black=6      Best:        	White=1     	---        Brilliant:      	White=1     	---} 1-0